[Event "WYCC U18 Girls 2019"]
[Site "Mumbai"]
[Date "2019.10.10"]
[Round "9.10"]
[White "Khachatryan, Anna"]
[Black "Radeva, Viktoria"]
[Result "1/2-1/2"]
[ECO "B43"]
[WhiteElo "2044"]
[BlackElo "2277"]
[Annotator "ChessBase"]
[PlyCount "55"]
[EventDate "2019.10.02"]
[EventType "swiss"]
[EventCountry "IND"]
[SourceTitle "playchess.com"]
[Source "ChessBase"]
[SourceQuality "1"]
[TimeControl "40/5400+30:1800+30"]

1. e4 {[%emt 0:00:00]} c5 {[%emt 0:00:02]} 2. Nf3 {[%emt 0:00:22]} e6 {[%emt 0:01:56]} 3. d4 {[%emt 0:00:12]} cxd4 {[%emt 0:00:06]} 4. Nxd4 {[%emt 0:00:04]} a6 {[%emt 0:00:42]} 5. Nc3 {[%emt 0:01:43]} Qc7 {[%emt 0:00:09]} 6. Qg4 {[%emt 0:00:10]} Nf6 {[%emt 0:02:00]} 7. Qg3 {[%emt 0:00:05]} Qxg3 {[%emt 0:01:42]} 8. hxg3 {[%emt 0:00:04]} Bb4 {[%emt 0:02:30]} 9. e5 {[%emt 0:00:47]} Ne4 {[%emt 0:02:49]} 10. a3 {[%emt 0:00:10]} Bxc3+ {[%emt 0:08:59]} 11. bxc3 {[%emt 0:00:05]} d6 {[%emt 0:02:39]} 12. Bd3 {[%emt 0:19:44]} dxe5 {[%emt 0:06:31]} 13. Bxe4 {[%emt 0:00:29]} exd4 {[%emt 0:00:06]} 14. cxd4 {[%emt 0:00:07]} Nc6 {[%emt 0:05:41]} 15. Bb2 {[%emt 0:22:53]} Bd7 {[%emt 0:06:45]} 16. O-O-O {[%emt 0:04:26]} h6 {[%emt 0:06:27]} 17. d5 {[%emt 0:27:39]} exd5 {[%emt 0:01:09]} 18. Rxd5 {[%emt 0:00:24]} Be6 {[%emt 0:03:50]} 19. Rdh5 {[%emt 0:09:03]} O-O {[%emt 0:09:13]} 20. R5h4 {[%emt 0:04:18]} Rad8 {[%emt 0:04:01]} 21. g4 {[%emt 0:01:36]} f6 {[%emt 0:02:01]} 22. f4 {[%emt 0:01:45]} Nd4 {[%emt 0:06:04]} 23. Bd3 {[%emt 0:00:39]} Nb3+ {[%emt 0:01:55]} 24. Kb1 {[%emt 0:00:26]} Nd2+ {[%emt 0:09:52]} 25. Kc1 {[%emt 0:00:12]} Nb3+ {[%emt 0:00:26]} 26. Kb1 {[%emt 0:01:40]} Nd2+ {[%emt 0:04:18]} 27. Ka1 {[%emt 0:00:46]} Nb3+ {[%emt 0:01:52]} 28. Kb1 {[%emt 0:01:49]} 1/2-1/2

[Event "WYCC U18 Girls 2019"]
[Site "Mumbai"]
[Date "2019.10.10"]
[Round "9.11"]
[White "Shpanko, Nadiia"]
[Black "Laurincova, Kristyna"]
[Result "1-0"]
[ECO "B39"]
[WhiteElo "2213"]
[BlackElo "2006"]
[Annotator "ChessBase"]
[PlyCount "77"]
[EventDate "2019.10.02"]
[EventType "swiss"]
[EventCountry "IND"]
[SourceTitle "playchess.com"]
[Source "ChessBase"]
[SourceQuality "1"]
[TimeControl "40/5400+30:1800+30"]

1. e4 {[%emt 0:00:00]} c5 {[%emt 0:00:00]} 2. Nf3 {[%emt 0:00:00]} Nc6 {[%emt 0:00:00]} 3. d4 {[%emt 0:01:15]} cxd4 {[%emt 0:00:00]} 4. Nxd4 {[%emt 0:00:03]} g6 {[%emt 0:00:00]} 5. c4 {[%emt 0:00:17]} Bg7 {[%emt 0:00:00]} 6. Be3 {[%emt 0:00:15]} Nf6 {[%emt 0:00:51]} 7. Nc3 {[%emt 0:00:10]} Ng4 {[%emt 0:00:17]} 8. Qxg4 {[%emt 0:00:12]} Nxd4 {[%emt 0:00:05]} 9. Qd1 {[%emt 0:00:07]} Ne6 {[%emt 0:00:04]} 10. Rc1 {[%emt 0:00:04]} O-O {[%emt 0:00:32]} 11. Bd3 {[%emt 0:03:27]} b6 {[%emt 0:02:38]} 12. b4 {[%emt 0:02:53]} Bb7 {[%emt 0:01:40]} 13. O-O {[%emt 0:00:25]} f5 {[%emt 0:08:10]} 14. exf5 {[%emt 0:04:41]} gxf5 {[%emt 0:00:08]} 15. Qc2 {[%emt 0:03:37]} f4 {[%emt 0:09:34]} 16. Bxh7+ {[%emt 0:03:31]} Kh8 {[%emt 0:00:05]} 17. Bd2 {[%emt 0:00:44]} Nd4 {[%emt 0:14:36]} 18. Qd3 {[%emt 0:01:12]} f3 {[%emt 0:01:20]} 19. g3 {[%emt 0:09:36]} d5 {[%emt 0:08:26]} 20. Qg6 {[%emt 0:05:06]} Qe8 {[%emt 0:08:53]} 21. cxd5 {[%emt 0:01:43]} Ba6 {[%emt 0:12:50]} 22. Rfe1 {[%emt 0:02:20]} Rf6 {[%emt 0:00:44]} 23. Qxe8+ {[%emt 0:02:16]} Rxe8 {[%emt 0:00:02]} 24. Be4 {[%emt 0:01:52]} Ref8 {[%emt 0:06:13]} 25. Bg5 {[%emt 0:08:33]} R6f7 {[%emt 0:00:07]} 26. h4 {[%emt 0:01:44]} Ne2+ {[%emt 0:00:57]} 27. Nxe2 {[%emt 0:00:17]} fxe2 {[%emt 0:00:13]} 28. Be3 {[%emt 0:07:43]} Be5 {[%emt 0:00:46]} 29. a4 {[%emt 0:03:53]} Rg8 {[%emt 0:00:30]} 30. Kh2 {[%emt 0:03:43]} Rg4 {[%emt 0:00:50]} 31. f4 {[%emt 0:00:30]} Rfg7 {[%emt 0:01:38]} 32. Rg1 {[%emt 0:07:06]} Bb2 {[%emt 0:01:32]} 33. Rb1 {[%emt 0:00:13]} Bc3 {[%emt 0:01:15]} 34. Bf2 {[%emt 0:01:02]} Kg8 {[%emt 0:15:44]} 35. b5 {[%emt 0:00:15]} Bb7 {[%emt 0:00:07]} 36. Bf3 {[%emt 0:00:31]} R4g6 {[%emt 0:01:55]} 37. Bxe2 {[%emt 0:01:01]} Bxd5 {[%emt 0:00:04]} 38. Rbc1 {[%emt 0:01:18]} Re6 {[%emt 0:00:53]} 39. Bd3 {[%emt 0:00:25]} 1-0

[Event "WYCC U18 Girls 2019"]
[Site "Mumbai"]
[Date "2019.10.10"]
[Round "9.12"]
[White "Cervantes Landeiro, Thalia"]
[Black "Golub, Nikolina"]
[Result "1-0"]
[ECO "E43"]
[WhiteElo "2176"]
[BlackElo "1899"]
[Annotator "NA"]
[PlyCount "125"]
[EventDate "2019.10.02"]
[EventType "swiss"]
[EventCountry "IND"]
[SourceTitle "playchess.com"]
[Source "ChessBase"]
[SourceQuality "1"]
[TimeControl "40/5400+30:1800+30"]

1. d4 e6 2. c4 Nf6 3. Nc3 Bb4 4. e3 b6 5. Bd3 d5 6. Qa4+ Nc6 7. Qxc6+ Bd7 8. Qb7 a5 9. cxd5 Rb8 10. Qa6 exd5 11. Bb5 c6 12. Bxc6 Bxc6 13. Qd3 Qd7 14. Nge2 Bb5 15. Qc2 Rc8 16. O-O O-O 17. Re1 a4 18. Bd2 Ne4 19. a3 Ba5 20. Rac1 Nxd2 21. Qxd2 Bc4 22. Nf4 Rfe8 23. Nd3 f6 24. Nf4 Rcd8 25. Qd1 Bb3 26. Qf3 Bc4 27. h3 b5 28. Red1 Bb3 29. Re1 Bc4 30. Nh5 Kh8 31. Ng3 Bb3 32. Nf1 Bc4 33. Nd2 Bd3 34. Red1 Bg6 35. Qe2 Rb8 36. Na2 Bb6 37. Qf3 Qf5 38. Qxf5 Bxf5 39. Nb4 Be6 40. Rc6 Ba5 41. Rdc1 Bxb4 42. axb4 Bf5 43. R1c5 Red8 44. f3 Bd3 45. Kf2 Kg8 46. Rc7 Kf8 47. e4 dxe4 48. Ke3 Bc4 49. fxe4 Bf7 50. Ra7 Rdc8 51. d5 Be8 52. Kd4 Ra8 53. Rxa8 Rxa8 54. Nb1 Ra7 55. Nc3 Rb7 56. d6 Rb6 57. e5 fxe5+ 58. Kxe5 Bd7 59. Nd5 Rb8 60. Rc7 Ke8 61. Kd4 h6 62. Kc5 Ra8 63. Rxd7 1-0

[Event "WYCC U18 Girls 2019"]
[Site "Mumbai"]
[Date "2019.10.10"]
[Round "9.13"]
[White "Jyothsna L"]
[Black "Tarini Goyal"]
[Result "1/2-1/2"]
[ECO "A46"]
[WhiteElo "1995"]
[BlackElo "2128"]
[Annotator "ChessBase"]
[PlyCount "50"]
[EventDate "2019.10.02"]
[EventType "swiss"]
[EventCountry "IND"]
[SourceTitle "playchess.com"]
[Source "ChessBase"]
[SourceQuality "1"]
[TimeControl "40/5400+30:1800+30"]

1. d4 {[%emt 0:01:04]} Nf6 {[%emt 0:00:00]} 2. Nf3 {[%emt 0:00:03]} d5 {[%emt 0:00:21]} 3. c4 {[%emt 0:00:11]} e6 {[%emt 0:00:06]} 4. cxd5 {[%emt 0:00:45]} exd5 5. Nc3 {[%emt 0:00:22]} Be7 {[%emt 0:00:40]} 6. Bg5 {[%emt 0:00:14]} c6 {[%emt 0:00:11]} 7. Qc2 {[%emt 0:00:22]} g6 {[%emt 0:02:25]} 8. e3 {[%emt 0:01:49]} Bf5 {[%emt 0:00:25]} 9. Bd3 {[%emt 0:00:20]} Bxd3 {[%emt 0:00:08]} 10. Qxd3 {[%emt 0:00:15]} Nbd7 {[%emt 0:01:55]} 11. O-O {[%emt 0:02:18]} O-O {[%emt 0:00:10]} 12. h3 {[%emt 0:05:16]} Re8 {[%emt 0:03:56]} 13. Bf4 {[%emt 0:02:30]} Nb6 {[%emt 0:07:18]} 14. Ne5 {[%emt 0:34:27]} Nfd7 {[%emt 0:07:00]} 15. Nxd7 {[%emt 0:11:19]} Qxd7 {[%emt 0:03:38]} 16. Rab1 {[%emt 0:05:01]} a5 {[%emt 0:01:24]} 17. Rfe1 {[%emt 0:07:36]} f5 {[%emt 0:03:04]} 18. Be5 {[%emt 0:04:18]} Bd6 {[%emt 0:02:45]} 19. f4 {[%emt 0:01:59]} Qe7 {[%emt 0:04:55]} 20. Nd1 {[%emt 0:04:51]} Qd7 {[%emt 0:27:18]} 21. Nc3 {[%emt 0:00:02]} Qe7 {[%emt 0:00:22]} 22. Nd1 {[%emt 0:00:08]} Qd7 {[%emt 0:00:08]} 23. Nc3 {[%emt 0:00:04]} Qe7 {[%emt 0:00:09]} 24. Nd1 {[%emt 0:00:09]} Qd7 {[%emt 0:00:06]} 25. Nc3 {[%emt 0:00:06]} Qe7 {[%emt 0:00:06]} 1/2-1/2

[Event "WYCC U18 Girls 2019"]
[Site "Mumbai"]
[Date "2019.10.10"]
[Round "9.14"]
[White "Sanskriti Goyal"]
[Black "Aciu, Malina-Andreea"]
[Result "1/2-1/2"]
[ECO "D31"]
[WhiteElo "1980"]
[BlackElo "2076"]
[Annotator "NA"]
[PlyCount "82"]
[EventDate "2019.10.02"]
[EventType "swiss"]
[EventCountry "IND"]
[SourceTitle "playchess.com"]
[Source "ChessBase"]
[SourceQuality "1"]
[TimeControl "40/5400+30:1800+30"]

1. d4 d5 2. c4 e6 3. Nc3 a6 4. cxd5 exd5 5. Nf3 c6 6. Bf4 Bd6 7. Bxd6 Qxd6 8. e4 dxe4 9. Nxe4 Qe7 10. Qe2 Be6 11. Nc5 Bc8 12. O-O-O Qxe2 13. Bxe2 Nf6 14. Bc4 O-O 15. Rhe1 b6 16. Nd3 a5 17. a3 Ba6 18. Ba2 Nbd7 19. Nde5 h6 20. Nxc6 Rac8 21. d5 Nb8 22. Kb1 Nxc6 23. dxc6 Rxc6 24. Ne5 Rc7 25. Rd6 Re8 26. f4 Kh7 27. Red1 Be2 28. R1d4 Bh5 29. Bb3 b5 30. Bc2+ Kg8 31. Rb6 Rc5 32. b4 axb4 33. axb4 Rd5 34. Rd6 Rxd4 35. Rxd4 Ng4 36. Nxg4 Bxg4 37. Re4 Kf8 38. Kb2 Rxe4 39. Bxe4 Ke7 40. Kc3 Kd6 41. Kd4 Be2 1/2-1/2

[Event "WYCC U18 Girls 2019"]
[Site "Mumbai"]
[Date "2019.10.11"]
[Round "10.1"]
[White "Schulze, Lara"]
[Black "Shuvalova, Polina"]
[Result "0-1"]
[ECO "C54"]
[WhiteElo "2327"]
[BlackElo "2412"]
[Annotator "NA"]
[PlyCount "127"]
[EventDate "2019.10.02"]
[EventType "swiss"]
[EventCountry "IND"]
[SourceTitle "playchess.com"]
[Source "ChessBase"]
[SourceQuality "1"]
[TimeControl "40/5400+30:1800+30"]

1. e4 {[%emt 0:00:00]} e5 {[%emt 0:00:00]} 2. Nf3 {[%emt 0:00:00]} Nc6 {[%emt 0:00:00]} 3. Bc4 {[%emt 0:00:00]} Bc5 {[%emt 0:00:00]} 4. c3 {[%emt 0:00:00]} Nf6 {[%emt 0:00:00]} 5. d3 {[%emt 0:00:01]} O-O {[%emt 0:00:05]} 6. O-O {[%emt 0:00:11]} d5 {[%emt 0:00:10]} 7. exd5 {[%emt 0:00:06]} Nxd5 {[%emt 0:00:02]} 8. a4 {[%emt 0:00:15] C54: Giuoco Piano: 4 c3 Nf6, main lines with 5 d4 and 5 d3} a5 {[%emt 0:00:22]} 9. Nbd2 {[%emt 0:00:21]} Nb6 {[%emt 0:01:43]} 10. Bb5 {[%emt 0:00:10]} Bd6 {[%emt 0:00:17]} 11. Re1 {[%emt 0:12:57]} Bg4 {[%emt 0:00:13]} 12. h3 $146 {[%emt 0:00:53]} ({Predecessor:} 12. Ne4 Na7 13. h3 {0-1 (58) Vachier Lagrave,M (2789)-So,W (2778) Paris 2018}) 12... Bh5 {[%emt 0:00:06]} 13. Ne4 {[%emt 0:06:54]} Na7 {[%emt 0:00:43]} 14. d4 {[%emt 0:04:41]} Nxb5 {[%emt 0:04:44]} 15. axb5 {[%emt 0:00:31]} exd4 {[%emt 0:05:20]} 16. Nxd6 {[%emt 0:05:26]} Qxd6 {[%emt 0:11:23]} 17. g4 {[%emt 0:03:31]} Bg6 {[%emt 0:00:34]} 18. Qxd4 {[%emt 0:00:52]} Qxd4 {[%emt 0:04:36]} 19. Nxd4 {[%emt 0:00:14]} a4 {[%emt 0:00:28]} 20. Bf4 Rfc8 {[%emt 0:05:25]} 21. b3 {[%emt 0:25:00]} Nd5 {[%emt 0:10:46]} 22. Bd2 {[%emt 0:01:48]} axb3 {[%emt 0:00:18]} 23. Nxb3 {[%emt 0:02:07]} Bd3 {[%emt 0:04:08]} 24. Nc5 {[%emt 0:09:55]} Bxb5 {[%emt 0:00:25]} 25. Nxb7 {[%emt 0:00:18]} Rxa1 {[%emt 0:04:31]} 26. Rxa1 {[%emt 0:00:06]} h6 {[%emt 0:00:34]} 27. Rc1 {[%emt 0:06:32]} Nf6 $11 {[%emt 0:05:39]} 28. c4 {[%emt 0:05:00]} Bc6 {[%emt 0:00:06]} 29. Nc5 {[%emt 0:00:33]} Ra8 {[%emt 0:06:42]} 30. Kh2 {[%emt 0:04:32]} Ra2 {[%emt 0:02:05]} 31. Be3 {[%emt 0:00:07]} h5 {[%emt 0:04:30]} 32. gxh5 {[%emt 0:04:17]} Nxh5 {[%emt 0:00:34]} 33. Nd3 {[%emt 0:01:26]} Be4 {[%emt 0:03:25]} 34. Nb4 {[%emt 0:01:04]} Rb2 {[%emt 0:01:53]} 35. Nd5 {[%emt 0:01:40]} c6 {[%emt 0:00:23]} 36. Nc3 {[%emt 0:00:33]} Bf3 {[%emt 0:00:14]} 37. Rb1 {[%emt 0:01:46]} Rc2 {[%emt 0:00:22]} 38. Rc1 {[%emt 0:00:24]} Rxc1 {[%emt 0:02:37]} 39. Bxc1 {[%emt 0:00:01]} Kf8 {[%emt 0:05:08]} 40. Ba3+ {[%emt 0:02:07]} Ke8 {[%emt 0:00:08]} 41. Nb1 {[%emt 0:07:21]} Kd7 {[%emt 0:00:32]} 42. Nd2 {[%emt 0:00:09]} Be2 {[%emt 0:00:11]} 43. f3 {[%emt 0:03:19]} Ke6 {[%emt 0:06:12]} 44. Kg2 {[%emt 0:01:07]} Bd3 {[%emt 0:04:31]} 45. Kf2 {[%emt 0:04:10]} g5 {[%emt 0:00:59]} 46. Ke3 {[%emt 0:03:31]} Bf5 {[%emt 0:00:13]} 47. Nb3 {[%emt 0:00:20]} Bxh3 {[%emt 0:01:12]} 48. Nd4+ {[%emt 0:04:13]} Kd7 {[%emt 0:00:07]} 49. Ke4 {[%emt 0:00:15]} f6 {[%emt 0:07:18]} 50. Nf5 {[%emt 0:01:15]} Bf1 {[%emt 0:01:24]} 51. c5 {[%emt 0:00:59]} Nf4 {[%emt 0:03:07]} 52. Nd4 {[%emt 0:02:11]} Bd3+ {[%emt 0:00:29]} 53. Ke3 {[%emt 0:00:06]} Bb1 {[%emt 0:00:33]} 54. Ne2 {[%emt 0:01:18]} Nd5+ {[%emt 0:01:00]} 55. Kd4 {[%emt 0:00:20]} Bc2 {[%emt 0:00:51]} 56. Nc3 {[%emt 0:03:00]} Ne7 {[%emt 0:04:12]} 57. Ke3 {[%emt 0:02:56]} Ke6 {[%emt 0:02:38]} 58. Bb2 {[%emt 0:01:44]} f5 {[%emt 0:03:57]} 59. Ne2 {[%emt 0:01:38]} f4+ {[%emt 0:03:05]} 60. Kd4 {[%emt 0:00:10]} Bd1 {[%emt 0:00:31]} 61. Ng1 {[%emt 0:00:33]} Nf5+ {[%emt 0:00:25]} 62. Kd3 {[%emt 0:00:18]} Nh4 {[%emt 0:00:28]} 63. Nh3 {[%emt 0:01:21]} Kf5 {[%emt 0:00:12]} 64. Kd4 {Ke5+} 0-1

[Event "WYCC U18 Girls 2019"]
[Site "Mumbai"]
[Date "2019.10.11"]
[Round "10.2"]
[White "Vantika Agrawal"]
[Black "Yan, Tianqi"]
[Result "1-0"]
[ECO "B40"]
[WhiteElo "2283"]
[BlackElo "2236"]
[Annotator "NA"]
[PlyCount "83"]
[EventDate "2019.10.02"]
[EventType "swiss"]
[EventCountry "IND"]
[SourceTitle "playchess.com"]
[Source "ChessBase"]
[SourceQuality "1"]
[TimeControl "40/5400+30:1800+30"]

1. e4 {[%emt 0:00:00]} c5 {[%emt 0:00:00]} 2. Nf3 {[%emt 0:00:00]} e6 {[%emt 0:00:00]} 3. g3 {[%emt 0:00:21]} Nc6 {[%emt 0:00:02]} 4. Bg2 {[%emt 0:00:07]} Nf6 {[%emt 0:00:09]} 5. Qe2 {[%emt 0:00:14]} d5 {[%emt 0:00:26]} 6. exd5 {[%emt 0:00:13]} Nxd5 {[%emt 0:00:07]} 7. O-O {[%emt 0:00:09]} Be7 {[%emt 0:00:10]} 8. Rd1 {[%emt 0:00:14]} e5 {[%emt 0:05:21]} 9. c3 {[%emt 0:21:46]} Bg4 {[%emt 0:02:31]} 10. h3 {[%emt 0:03:45]} Bxf3 {[%emt 0:04:49]} 11. Qxf3 {[%emt 0:01:14]} Nf6 {[%emt 0:04:32]} 12. Qe2 {[%emt 0:02:44]} Nd5 {[%emt 0:22:31]} 13. d4 {[%emt 0:24:54]} exd4 {[%emt 0:06:15]} 14. cxd4 {[%emt 0:00:14]} cxd4 {[%emt 0:15:34]} 15. Qb5 {[%emt 0:02:27]} Nb6 16. Bxc6+ {[%emt 0:01:03]} bxc6 {[%emt 0:00:33]} 17. Qxc6+ {[%emt 0:00:06]} Qd7 {[%emt 0:06:39]} 18. Qxd7+ {[%emt 0:00:21]} Nxd7 {[%emt 0:00:03]} 19. Rxd4 {[%emt 0:00:29]} Nc5 {[%emt 0:03:30]} 20. Nc3 {[%emt 0:01:56]} O-O {[%emt 0:00:54]} 21. Nd5 {[%emt 0:01:24]} Bd8 {[%emt 0:00:34]} 22. Be3 {[%emt 0:01:57]} Ne6 {[%emt 0:01:06]} 23. Rc4 {[%emt 0:01:37]} Re8 {[%emt 0:03:32]} 24. b4 {[%emt 0:06:37]} Ng5 {[%emt 0:02:18]} 25. Kg2 {[%emt 0:02:02]} Ne4 {[%emt 0:00:52]} 26. Rd1 {[%emt 0:05:06]} Nd6 {[%emt 0:04:34]} 27. Nf6+ {[%emt 0:01:01]} Bxf6 {[%emt 0:00:13]} 28. Rxd6 {[%emt 0:00:03]} Re7 {[%emt 0:00:48]} 29. Ra6 {[%emt 0:02:52]} h5 {[%emt 0:01:04]} 30. b5 {[%emt 0:01:21]} Rb8 {[%emt 0:00:15]} 31. a4 {[%emt 0:00:45]} Rbb7 {[%emt 0:00:10]} 32. Rc8+ {[%emt 0:00:25]} Kh7 {[%emt 0:00:03]} 33. Ra8 {[%emt 0:00:19]} h4 {[%emt 0:01:38]} 34. g4 {[%emt 0:00:32]} Re4 {[%emt 0:01:00]} 35. R6xa7 {[%emt 0:00:37]} Rxa7 {[%emt 0:00:19]} 36. Rxa7 {[%emt 0:00:07]} Kg6 {[%emt 0:00:08]} 37. a5 {[%emt 0:00:55]} Rb4 {[%emt 0:00:40]} 38. Rb7 {[%emt 0:00:25]} Be5 {[%emt 0:01:05]} 39. a6 {[%emt 0:00:11]} f5 {[%emt 0:00:07]} 40. gxf5+ {[%emt 0:00:12]} Kxf5 {[%emt 0:00:03]} 41. a7 {[%emt 0:30:15]} Ra4 {[%emt 0:30:25]} 42. Rb8 {[%emt 0:00:45]} 1-0

[Event "WYCC U18 Girls 2019"]
[Site "Mumbai"]
[Date "2019.10.11"]
[Round "10.3"]
[White "Obolentseva, Alexandra"]
[Black "Urh, Zala"]
[Result "1/2-1/2"]
[ECO "A22"]
[WhiteElo "2282"]
[BlackElo "2105"]
[Annotator "NA"]
[PlyCount "67"]
[EventDate "2019.10.02"]
[EventType "swiss"]
[EventCountry "IND"]
[SourceTitle "playchess.com"]
[Source "ChessBase"]
[SourceQuality "1"]
[TimeControl "40/5400+30:1800+30"]

1. c4 {[%emt 0:00:00]} e5 {[%emt 0:00:00]} 2. Nc3 {[%emt 0:00:00]} Nf6 {[%emt 0:00:00]} 3. g3 {[%emt 0:00:00]} d5 {[%emt 0:00:07]} 4. cxd5 {[%emt 0:00:00]} Nxd5 {[%emt 0:00:07]} 5. Bg2 {[%emt 0:00:06]} Nb6 {[%emt 0:00:09]} 6. e3 {[%emt 0:00:07]} Nc6 {[%emt 0:02:45]} 7. Nge2 {[%emt 0:00:08]} Be7 {[%emt 0:01:31]} 8. O-O {[%emt 0:00:59]} O-O {[%emt 0:00:33]} 9. f4 {[%emt 0:00:58]} exf4 {[%emt 0:01:12]} 10. Nxf4 {[%emt 0:00:11]} Ne5 {[%emt 0:02:05]} 11. d4 {[%emt 0:01:00]} Ng6 {[%emt 0:00:28]} 12. Nd3 {[%emt 0:05:52]} Nd7 {[%emt 0:06:47]} 13. Qb3 {[%emt 0:12:32]} c5 {[%emt 0:07:13]} 14. Bd5 {[%emt 0:03:27]} Nf6 {[%emt 0:14:50]} 15. dxc5 {[%emt 0:00:36]} Nxd5 16. Nxd5 {[%emt 0:00:20]} Bh3 {[%emt 0:11:57]} 17. Re1 {[%emt 0:02:38]} Rc8 {[%emt 0:03:44]} 18. e4 {[%emt 0:01:26]} Bxc5+ {[%emt 0:04:04]} 19. Nxc5 {[%emt 0:00:07]} Rxc5 {[%emt 0:00:06]} 20. Be3 {[%emt 0:00:09]} Rc8 {[%emt 0:02:26]} 21. Bxa7 {[%emt 0:12:25]} Re8 {[%emt 0:05:49]} 22. Bd4 {[%emt 0:06:43]} Qd7 {[%emt 0:05:20]} 23. Qf3 {[%emt 0:06:14]} Rc6 {[%emt 0:12:21]} 24. Bc3 {[%emt 0:02:37]} Nh4 {[%emt 0:06:59]} 25. gxh4 {[%emt 0:01:56]} Rg6+ {[%emt 0:00:13]} 26. Kf2 {[%emt 0:01:21]} Rg2+ {[%emt 0:01:16]} 27. Ke3 {[%emt 0:08:22]} Qxd5 {[%emt 0:00:51]} 28. Rad1 {[%emt 0:03:24]} Qc5+ {[%emt 0:01:15]} 29. Rd4 {[%emt 0:01:18]} Qc8 {[%emt 0:05:44]} 30. Kd3 {[%emt 0:01:34]} Qg4 {[%emt 0:02:02]} 31. Qxg4 {[%emt 0:04:18]} Bxg4 {[%emt 0:00:57]} 32. Rd5 {[%emt 0:05:33]} f6 {[%emt 0:01:17]} 33. Rb5 {[%emt 0:04:36]} Re7 {[%emt 0:00:36]} 34. Re3 {[%emt 0:04:45]} 1/2-1/2

[Event "WYCC U18 Girls 2019"]
[Site "Mumbai"]
[Date "2019.10.11"]
[Round "10.4"]
[White "Kucharska, Honorata"]
[Black "Munkhzul, Turmunkh"]
[Result "1/2-1/2"]
[ECO "B50"]
[WhiteElo "2114"]
[BlackElo "2332"]
[Annotator "NA"]
[PlyCount "144"]
[EventDate "2019.10.02"]
[EventType "swiss"]
[EventCountry "IND"]
[SourceTitle "playchess.com"]
[Source "ChessBase"]
[SourceQuality "1"]
[TimeControl "40/5400+30:1800+30"]

1. e4 {[%emt 0:00:00]} c5 {[%emt 0:00:16]} 2. Nf3 {[%emt 0:00:02]} d6 {[%emt 0:00:27]} 3. Nc3 {[%emt 0:00:28]} Nf6 {[%emt 0:00:56]} 4. e5 {[%emt 0:00:20]} dxe5 {[%emt 0:01:57]} 5. Nxe5 {[%emt 0:00:06]} a6 {[%emt 0:03:23]} 6. g3 {[%emt 0:00:55]} Qc7 {[%emt 0:08:02]} 7. d4 {[%emt 0:02:39]} cxd4 {[%emt 0:01:48]} 8. Qxd4 {[%emt 0:00:09]} Nc6 {[%emt 0:01:25]} 9. Nxc6 {[%emt 0:00:27]} Qxc6 {[%emt 0:00:24]} 10. Bg5 {[%emt 0:01:21]} Be6 {[%emt 0:14:02]} 11. O-O-O {[%emt 0:05:40]} h6 {[%emt 0:07:30]} 12. Bf4 {[%emt 0:09:01]} Bg4 {[%emt 0:03:52]} 13. Be2 {[%emt 0:11:45]} Bxe2 {[%emt 0:01:02]} 14. Nxe2 {[%emt 0:00:04]} e6 {[%emt 0:01:07]} 15. Qd3 {[%emt 0:10:44]} Be7 {[%emt 0:02:01]} 16. Nd4 {[%emt 0:01:09]} Qd5 {[%emt 0:02:50]} 17. Nxe6 {[%emt 0:09:30]} Qxe6 {[%emt 0:26:47]} 18. Rhe1 {[%emt 0:00:08]} Qc6 {[%emt 0:03:33]} 19. Bd6 {[%emt 0:00:55]} O-O {[%emt 0:00:56]} 20. Bxe7 {[%emt 0:00:51]} Rfc8 {[%emt 0:00:28]} 21. Re2 {[%emt 0:08:38]} Rc7 {[%emt 0:01:57]} 22. Bxf6 {[%emt 0:07:38]} Qxf6 {[%emt 0:00:14]} 23. f4 {[%emt 0:00:58]} Rac8 {[%emt 0:00:29]} 24. Kb1 {[%emt 0:04:34]} Qc6 {[%emt 0:01:50]} 25. Rde1 {[%emt 0:00:58]} b5 {[%emt 0:01:06]} 26. g4 {[%emt 0:01:33]} Rf8 {[%emt 0:01:30]} 27. Qe4 {[%emt 0:06:05]} Qd7 {[%emt 0:01:23]} 28. g5 Rc4 {[%emt 0:00:38]} 29. Qe5 {[%emt 0:02:12]} Rd4 {[%emt 0:00:57]} 30. Rc1 {[%emt 0:01:45]} Rd5 {[%emt 0:00:26]} 31. Qe3 {[%emt 0:00:48]} h5 {[%emt 0:01:20]} 32. Qe4 {[%emt 0:02:34]} Rd4 {[%emt 0:01:07]} 33. Qf3 {[%emt 0:00:51]} g6 {[%emt 0:01:32]} 34. Re5 {[%emt 0:02:36]} Qd6 {[%emt 0:01:44]} 35. Qe3 {[%emt 0:00:46]} Rd5 {[%emt 0:02:50]} 36. Re4 {[%emt 0:01:22]} Rd8 {[%emt 0:00:30]} 37. a3 {[%emt 0:00:48]} Rd1 {[%emt 0:02:12]} 38. Re8+ {[%emt 0:02:11]} Rxe8 {[%emt 0:00:23]} 39. Qxe8+ {[%emt 0:00:08]} Kg7 {[%emt 0:00:05]} 40. Qe3 {[%emt 0:04:39]} Rd4 {[%emt 0:00:56]} 41. Rf1 {[%emt 0:31:06]} Qc5 {[%emt 0:31:38]} 42. Rc1 {[%emt 0:00:00]} Qd6 {[%emt 0:00:00]} 43. Rf1 {[%emt 0:00:00]} Qc5 {[%emt 0:00:00]} 44. Rc1 {[%emt 0:00:00]} a5 {[%emt 0:00:00]} 45. Ka1 {[%emt 0:00:00]} Qd6 {[%emt 0:00:00]} 46. Rf1 {[%emt 0:00:00]} b4 {[%emt 0:00:00]} 47. axb4 {[%emt 0:00:00]} axb4 {[%emt 0:00:00]} 48. Kb1 {[%emt 0:00:00]} Qc5 {[%emt 0:00:00]} 49. Qe2 {[%emt 0:00:00]} Qf5 {[%emt 0:00:00]} 50. Qe3 {[%emt 0:00:00]} Re4 {[%emt 0:00:00]} 51. Qd2 {[%emt 0:00:00]} Kh7 {[%emt 0:00:00]} 52. b3 {[%emt 0:00:00]} Kg7 {[%emt 0:00:00]} 53. Rf2 {[%emt 0:00:00]} h4 {[%emt 0:00:00]} 54. Rf3 {[%emt 0:00:00]} Qe6 {[%emt 0:00:00]} 55. Rf1 {[%emt 0:00:11]} Qg4 {[%emt 0:00:00]} 56. Qd6 {[%emt 0:00:57]} Qf5 {[%emt 0:00:10]} 57. Qd2 {[%emt 0:00:58]} Qh3 {[%emt 0:02:16]} 58. Rf2 {[%emt 0:01:23]} Qg4 {[%emt 0:00:26]} 59. Kb2 {[%emt 0:00:43]} Qg1 {[%emt 0:01:19]} 60. Rg2 {[%emt 0:00:20]} Qf1 {[%emt 0:00:45]} 61. Rf2 {[%emt 0:00:12]} Qg1 {[%emt 0:00:44]} 62. Rg2 {[%emt 0:00:06]} Qf1 {[%emt 0:00:38]} 63. Rf2 {[%emt 0:00:08]} Qb5 {[%emt 0:00:04]} 64. Qd6 {[%emt 0:01:13]} Qf5 {[%emt 0:00:11]} 65. Qd2 {[%emt 0:00:30]} Qe6 {[%emt 0:00:28]} 66. Rf1 {[%emt 0:00:59]} Qf5 {[%emt 0:02:08]} 67. Rf2 {[%emt 0:00:15]} Qc5 {[%emt 0:01:33]} 68. Rf1 {[%emt 0:00:47]} Re3 {[%emt 0:00:27]} 69. Kb1 {[%emt 0:00:47]} Qe7 {[%emt 0:00:48]} 70. Qd4+ {[%emt 0:00:30]} Kg8 {[%emt 0:00:45]} 71. Kb2 {[%emt 0:00:40]} Re4 {[%emt 0:00:10]} 72. Qd5 {[%emt 0:00:36]} Qe6 {[%emt 0:01:47]} 1/2-1/2